[Event "Grandiscacchi GM Festival 2022"]
[Site "Montebelluna"]
[Date "2022.05.17"]
[Round "4.3"]
[White "Fishchuk, Vladyslav"]
[Black "Kalogridis, Antonios"]
[Result "0-1"]
[ECO "A34"]
[WhiteElo "2102"]
[BlackElo "2306"]
[Annotator "TA"]
[PlyCount "104"]
[EventDate "2022.05.17"]
[EventType "swiss"]
[EventCountry "ITA"]
[SourceTitle "playchess.com"]
[Source "ChessBase"]
[SourceQuality "1"]
[TimeControl "40/3600+30:1800+30"]

{[%evp 14,104,9,19,27,32,33,20,31,31,41,49,43,37,36,29,39,35,37,30,50,48,64,75,75,77,103,41,63,49,50,57,56,47,50,-20,0,0,50,54,56,56,47,15,10,11,44,0,0,0,0,0,59,-7,0,-27,0,-15,-15,-263,-254,-256,-261,-289,-288,-268,-268,-610,-606,-608,-602,-587,-538,-676,-645,-650,-635,-556,-637,-675,-654,-677,-677,-772,-775,-1070,-752,-685,-661,-1189,-1129,-12844,-12845]} 1. c4 {[%emt 0:00:05]} Nf6 {[%emt 0:00:06]} 2. Nc3 {[%emt 0:00:11]} c5 {[%emt 0:00:06]} 3. Nf3 {[%emt 0:00:12][%cal Bg1f3,Bf3d2,Bd2c4][%mdl 32]} d5 {[%emt 0:00:04]} 4. cxd5 {[%emt 0:00:34]} Nxd5 {[%emt 0:00:06]} 5. g3 {[%emt 0:01:28]} Nc6 {[%emt 0:00:06]} 6. Bg2 {[%emt 0:00:07]} Nc7 {[%emt 0:00:03]} 7. d3 {[%emt 0:00:12]} e5 {[%emt 0:00:23]} 8. Nd2 {[%emt 0:01:02]} Be7 {[%emt 0:01:03] A34: Symmetrical English: 2 Nc3, lines with ...d5.} 9. Bxc6+ {[%emt 0:00:26]} bxc6 {[%emt 0:00:02]} 10. Qa4 {[%emt 0:00:11]} Bd7 {[%emt 0:04:21] The position is equal.} 11. Nc4 {[%emt 0:06:27]} f6 {[%emt 0:00:06]} 12. Be3 {[%emt 0:02:10]} Ne6 {[%emt 0:03:53]} 13. Rc1 {[%emt 0:03:07]} O-O {[%emt 0:01:50]} 14. O-O {[%emt 0:00:56] [#]} Qc7 $146 {[%emt 0:02:31]} ({Predecessor:} 14... Nd4 15. Rfe1 Bg4 16. f3 Bxf3 17. exf3 Nxf3+ 18. Kg2 Nxe1+ 19. Rxe1 Qd7 20. Rd1 Rab8 {0-1 (50) Bopp,T (2215)-Eisenbeiser,A (2233) Budapest 2003}) 15. Qa5 {[%emt 0:01:37]} Qb7 {[%emt 0:03:36]} 16. Rfe1 {[%emt 0:04:36]} Rfc8 {[%emt 0:13:45]} 17. Ne4 {[%emt 0:03:30][%cal Re3c5]} Qb5 {[%emt 0:00:55]} 18. Qc3 {[%emt 0:01:29] Hoping for Ncd6.} Rcb8 {[%emt 0:07:03]} 19. b3 {[%emt 0:04:13]} Qb4 {[%emt 0:04:42]} 20. Qa1 {[%emt 0:06:00]} (20. Nb2 $16) 20... Nd4 {[%emt 0:03:02]} 21. Bd2 {[%emt 0:08:13]} Qb7 {[%emt 0:00:32]} 22. Nb2 {[%emt 0:00:54]} Qb5 {[%emt 0:03:37]} 23. Na4 {[%emt 0:00:31]} Bg4 {[%emt 0:00:05]} 24. Nec3 {[%emt 0:07:52] Pair of Knights!} (24. Rc4 $1 $14) 24... Qb7 {[%emt 0:02:46][%cal Oc5c4]} 25. f3 {[%emt 0:01:01]} Bxf3 {[%emt 0:01:26]} 26. exf3 $14 {[%emt 0:00:16]} Nxf3+ {[%emt 0:00:01]} 27. Kg2 {[%emt 0:00:42]} Nxd2 {[%emt 0:01:21]} 28. Qb2 {[%emt 0:00:12]} (28. Re2 $5 {[%cal Re2d2]}) 28... Nxb3 {[%emt 0:00:57]} 29. axb3 {[%emt 0:00:07]} Qxb3 {[%emt 0:00:10]} (29... c4 $5) 30. Qe2 {[%emt 0:00:00]} Rb4 {[%emt 0:00:00]} 31. Rb1 {[%emt 0:00:00]} Qe6 {[%emt 0:00:00]} 32. Nb2 {[%emt 0:00:00]} Rd4 {[%emt 0:00:00]} (32... a5 $11) 33. Qc2 {[%emt 0:00:00]} (33. Nc4 $14) 33... Rad8 {[%emt 0:00:00]} 34. Ne2 {[%emt 0:00:00]} Qd5+ {[%emt 0:00:00]} (34... Rb4 $5 {[%cal Re6d5]}) 35. Kg1 {[%emt 0:00:00]} (35. Kf2 $5 {[%cal Re2d4]} Rb4 36. Nc3 Qd4+ 37. Kf1 $15) 35... Rb4 {[%emt 0:00:00][%cal Oc5c4] aiming for ...c4!} 36. Red1 $2 {[%emt 0:00:00] [#] White does not recover from this.} (36. Nc3 $11 Qd4+ 37. Kf1) 36... c4 $1 $19 {[%emt 0:00:00]} 37. h3 {[%emt 0:00:00][%cal Rb2c4]} ({But not} 37. Nxc4 $2 Bc5+ 38. d4 Rxc4 $19) 37... Qc5+ {[%emt 0:00:00]} 38. Kg2 {[%emt 0:00:00]} cxd3 {[%emt 0:00:00]} 39. Qxc5 {[%emt 0:00:00]} Bxc5 {[%emt 0:00:00]} 40. Rxd3 $2 {[%emt 0:00:00]} (40. Nc3) 40... Rxd3 {[%emt 0:00:00] Black is clearly winning.} 41. Nxd3 {[%emt 0:19:12]} Rxb1 {[%emt 0:19:02]} 42. Nxc5 {[%emt 0:00:08]} Rb5 {[%emt 0:00:34]} 43. Na4 {[%emt 0:00:11]} Kf7 {[%emt 0:00:16]} 44. Kf3 {[%emt 0:00:06]} a5 {[%emt 0:01:20]} 45. Nec3 {[%emt 0:00:28]} Rb4 {[%emt 0:00:28]} 46. Ke3 {[%emt 0:00:10]} f5 {[%emt 0:00:28]} 47. Nc5 {[%emt 0:00:14]} Rc4 {[%emt 0:00:52][%csl LRc3,LRc5]} 48. N3a4 {[%emt 0:00:26]} e4 {[%emt 0:00:36][%cal Be5e4,Be4e3][%mdl 32] [#] ...g5 is the strong threat.} 49. Kf4 {[%emt 0:00:14]} g6 {[%emt 0:00:31][%cal Bg7g6,Bg6h5][%mdl 32]} 50. h4 {[%emt 0:00:19]} h6 {[%emt 0:00:34] Strongly threatening ...Kf6.} 51. h5 {[%emt 0:00:22]} gxh5 {[%emt 0:00:33]} 52. Kxf5 {[%emt 0:00:18]} e3 {[%emt 0:00:05] Weighted Error Value: White=0.38/Black=0.11 (very precise)} 0-1

[Event "Grandiscacchi GM Festival 2022"]
[Site "Montebelluna"]
[Date "2022.05.17"]
[Round "4.4"]
[White "Siddharth, Jagadeesh"]
[Black "Martinovici, Ilia"]
[Result "1/2-1/2"]
[ECO "D37"]
[WhiteElo "2393"]
[BlackElo "2408"]
[Annotator "TA"]
[PlyCount "104"]
[EventDate "2022.05.17"]
[EventType "swiss"]
[EventCountry "ITA"]
[SourceTitle "playchess.com"]
[Source "ChessBase"]
[SourceQuality "1"]
[TimeControl "40/3600+30:1800+30"]

{[%evp 11,104,8,10,11,57,7,20,11,19,13,24,22,25,23,27,13,14,20,22,22,22,22,22,22,22,29,23,22,35,36,45,40,31,41,45,38,63,62,63,53,77,77,78,0,28,0,0,0,0,0,0,0,0,0,0,0,0,0,0,0,89,103,89,91,44,0,0,0,0,0,0,0,0,0,0,0,0,0,0,0,0,0,0,0,0,0,0,0,1161,0,0,0,0,0,0]} 1. d4 {[%emt 0:00:05]} Nf6 {[%emt 0:00:05]} 2. c4 {[%emt 0:00:35]} e6 {[%emt 0:00:03]} 3. Nf3 {[%emt 0:00:20]} d5 {[%emt 0:00:04]} 4. Nc3 {[%emt 0:00:09]} Be7 {[%emt 0:00:05]} 5. Bf4 {[%emt 0:00:45]} O-O {[%emt 0:00:07]} 6. e3 {[%emt 0:00:05]} Nbd7 {[%emt 0:00:05]} 7. c5 {[%emt 0:01:57] D37: Queen's Gambit Declined: 5 Bf4.} b6 {[%emt 0:00:10]} (7... Nh5 $11) 8. b4 {[%emt 0:02:08]} (8. c6 $14 Nb8 9. Qa4) 8... a5 {[%emt 0:00:06]} 9. a3 {[%emt 0:00:06]} c6 {[%emt 0:00:04] Against Bb5} 10. h3 {[%emt 0:00:26]} h6 {[%emt 0:00:05] seems to push 10...Ba6 aside.} 11. Bd3 {[%emt 0:00:15]} Ba6 {[%emt 0:00:05] White must now prevent ...Bxd3.} 12. O-O {[%emt 0:00:14]} Qc8 {[%emt 0:00:05]} 13. Re1 {[%emt 0:00:06]} Qb7 {[%emt 0:00:09]} 14. Bc2 {[%emt 0:00:08]} axb4 {[%emt 0:00:33]} 15. axb4 {[%emt 0:00:09]} Bc4 {[%emt 0:00:09] [#]} 16. Qd2 $146 {[%emt 0:01:10]} ({Predecessor:} 16. Rb1 Ra3 17. Qd2 bxc5 18. bxc5 Qa7 19. e4 Bd8 20. e5 Ba5 21. exf6 Bxc3 22. Qc1 Nxf6 23. Bxh6 {1-0 (33) Ding,L (2799)-Nakamura,H (2736) Chess.com INT 2021}) 16... Rxa1 {[%emt 0:00:49]} 17. Rxa1 {[%emt 0:00:08]} Ra8 {[%emt 0:00:04]} 18. Qc1 {[%emt 0:01:30]} Bd8 {[%emt 0:01:53]} 19. Nd2 {[%emt 0:03:23]} b5 {[%emt 0:01:11]} 20. Ra3 {[%emt 0:02:00]} Ne8 {[%emt 0:00:55]} 21. Qa1 {[%emt 0:03:58]} Rxa3 {[%emt 0:00:09]} 22. Qxa3 {[%emt 0:00:03]} Bc7 {[%emt 0:00:05]} 23. Nf3 {[%emt 0:03:58]} g5 {[%emt 0:03:37]} 24. Bxc7 {[%emt 0:00:24] White is more active.} Nxc7 {[%emt 0:00:05]} 25. Qa5 {[%emt 0:00:16]} Kf8 {[%emt 0:00:56]} 26. e4 {[%emt 0:07:38]} Ke7 {[%emt 0:05:08]} 27. Nd2 {[%emt 0:13:11]} (27. e5 $16) 27... Kd8 {[%emt 0:02:51]} 28. Nxc4 {[%emt 0:02:04]} dxc4 {[%emt 0:00:10]} 29. Qa1 {[%emt 0:00:21]} Ke7 {[%emt 0:06:50]} 30. Bd1 {[%emt 0:00:00]} Nf6 {[%emt 0:00:00]} 31. Bf3 {[%emt 0:00:00]} Qa6 {[%emt 0:00:00]} 32. Qc1 {[%emt 0:00:00]} Qa8 {[%emt 0:00:00]} 33. g3 {[%emt 0:00:00]} Qd8 {[%emt 0:00:00]} 34. Qe3 {[%emt 0:00:00]} Qa8 {[%emt 0:00:00]} 35. Kg2 {[%emt 0:00:00]} Na6 {[%emt 0:00:00] [#]} (35... Qd8 $11) 36. d5 $1 $16 {[%emt 0:00:00]} Nxb4 {[%emt 0:00:00][%cal Rc6d5]} 37. d6+ {[%emt 0:00:00]} Kd7 {[%emt 0:00:00] aiming for ...Nd3.} 38. e5 {[%emt 0:00:00]} (38. Be2 $5 {[%cal Re3f3]}) 38... Nfd5 $36 {[%emt 0:00:00][%mdl 2048] Black has the initiative.} 39. Bxd5 {[%emt 0:04:27] Chess con chili.} Nxd5 $11 {[%emt 0:00:00][%mdl 4096] Endgame KQN-KQN} 40. Qf3 {[%emt 0:09:28]} Qe8 {[%emt 0:00:00]} 41. Nxd5 {[%emt 0:31:52]} exd5 {[%emt 0:24:27] KQ-KQ} ({Don't play} 41... cxd5 42. Qa3 Qc8 43. Qa7+ Kc6 44. Qb6+ Kd7 45. Qa7+ Kc6 46. Qb6+ Kd7 47. Qxb5+ Qc6 48. Qb8 $16) 42. Qa3 {[%emt 0:02:34]} d4 {[%emt 0:06:03] Hoping for ...d3.} (42... Qxe5 $2 43. Qa7+ Ke8 44. Qb8+ Kd7 45. Qa7+ Ke8 46. Qb8+ Kd7 47. Qa7+ $18) 43. f4 {[%emt 0:01:51]} gxf4 {[%emt 0:00:50]} 44. gxf4 {[%emt 0:00:02]} f5 {[%emt 0:10:35]} 45. Qa7+ {[%emt 0:03:58]} Ke6 {[%emt 0:01:27]} 46. Qg7 {[%emt 0:00:55] Qf6+ is the strong threat.} Qf7 {[%emt 0:14:03] Prevents Qf6+.} 47. Qh8 {[%emt 0:00:37]} c3 {[%emt 0:10:00][%cal Bc4c3,Bc3c2][%mdl 32] Threatens to win with ...c2.} 48. Qc8+ {[%emt 0:01:28]} Kd5 {[%emt 0:06:51] ( -> ...c2)} 49. d7 {[%emt 0:00:41]} Qg6+ $2 {[%emt 0:04:06][%mdl 8192] [#]} (49... Kc4 $11 50. d8=Q c2) 50. Kf2 $2 {[%emt 0:05:54]} (50. Kf3 $1 $18 Qh5+ 51. Kg3) 50... c2 $1 {[%emt 0:00:11] The position is equal.} 51. d8=Q+ {[%emt 0:00:05]} Ke4 $1 {[%emt 0:00:05]} 52. Qcd7 {[%emt 0:03:24][%csl Gd8][%cal Rd7d4]} Qg1+ $1 {[%emt 0:00:42][%mdl 64] Decoy.  Weighted Error Value: White=0.25 (precise) /Black=0.09 (flawless)} 1/2-1/2

[Event "Grandiscacchi GM Festival 2022"]
[Site "Montebelluna"]
[Date "2022.05.17"]
[Round "4.5"]
[White "Ojas Kulkarni"]
[Black "Shahil Dey"]
[Result "0-1"]
[ECO "B22"]
[WhiteElo "2235"]
[BlackElo "2369"]
[Annotator "TA"]
[PlyCount "108"]
[EventDate "2022.05.17"]
[EventType "swiss"]
[EventCountry "ITA"]
[SourceTitle "playchess.com"]
[Source "ChessBase"]
[SourceQuality "1"]
[TimeControl "40/3600+30:1800+30"]

{[%evp 12,108,55,37,56,52,35,44,127,116,112,122,117,37,30,28,63,51,57,66,88,0,9,0,0,0,0,0,0,0,5,0,0,0,0,-14,6,4,30,0,0,0,0,0,0,0,31,24,41,38,61,61,64,57,62,47,46,16,80,74,86,82,88,0,0,-25,-32,-322,-317,-326,-327,-327,-315,-317,-318,-329,-326,-310,-319,-323,-288,-674,-452,-4894,-1237,-29991,-29989,-29989,-29990,-29990,-29991,-29991,-29992,-29992,-29991,-29994,-29995,-29995,-29996]} 1. e4 {[%emt 0:00:02] ChessBase II} c5 {[%emt 0:00:06]} 2. c3 {[%emt 0:00:09]} d5 {[%emt 0:00:20]} 3. exd5 {[%emt 0:00:07]} Qxd5 {[%emt 0:00:05]} 4. d4 {[%emt 0:00:04]} Nf6 {[%emt 0:00:09]} 5. Nf3 {[%emt 0:00:07]} Bg4 {[%emt 0:00:04]} 6. Nbd2 {[%emt 0:00:07]} cxd4 {[%emt 0:03:36]} 7. Bc4 {[%emt 0:00:09]} Qh5 {[%emt 0:04:28] B22: Sicilian: 2 c3.} 8. Qb3 {[%emt 0:03:47]} Nbd7 {[%emt 0:04:37]} 9. cxd4 {[%emt 0:03:33]} Rb8 {[%emt 0:00:56]} (9... e6 $14) 10. O-O {[%emt 0:02:40]} b5 {[%emt 0:00:53]} 11. Be2 {[%emt 0:03:55]} Qd5 {[%emt 0:02:31]} 12. Qe3 {[%emt 0:02:09]} (12. Nb1 $16) 12... e6 $1 $14 {[%emt 0:01:18] [#]} 13. a4 $146 {[%emt 0:02:41]} ({Predecessor:} 13. Nb1 b4 14. b3 Nb6 15. Nbd2 Be7 16. Nc4 O-O 17. h3 Bh5 18. g4 Bg6 19. Nfe5 {0-1 (30) Gantner,L (2044)-Loiret,S (2264) Issy les Moulineaux 2008 EXT 2010 [ChessBase II]}) 13... a6 {[%emt 0:00:59]} 14. axb5 {[%emt 0:00:02]} axb5 {[%emt 0:00:07]} 15. h3 {[%emt 0:09:26]} Bh5 {[%emt 0:01:12] [#]} 16. Nb1 {[%emt 0:04:56]} ({White should play} 16. g4 $1 $16 {[%cal Rg4h5]} Bg6 17. g5) 16... b4 $11 {[%emt 0:01:09]} 17. Nbd2 {[%emt 0:01:15][%cal Bb1d2,Bd2b3,Bb3c5][%mdl 32]} Be7 $1 {[%emt 0:00:06]} 18. Bc4 {[%emt 0:00:06]} Qb7 {[%emt 0:01:10]} 19. Ne5 {[%emt 0:25:14]} O-O {[%emt 0:01:26]} 20. Nb3 {[%emt 0:00:19]} Nb6 {[%emt 0:03:38]} 21. Bd3 {[%emt 0:00:55]} Ra8 {[%emt 0:01:46]} 22. Bd2 {[%emt 0:01:06]} Nbd5 {[%emt 0:00:37]} 23. Qg3 {[%emt 0:00:44]} Bg6 {[%emt 0:00:12]} 24. Nc5 {[%emt 0:08:57]} Qb6 {[%emt 0:06:12]} 25. Bxg6 {[%emt 0:00:00]} hxg6 {[%emt 0:00:08]} 26. Ned7 {[%emt 0:00:00]} Nxd7 {[%emt 0:00:05]} 27. Nxd7 {[%emt 0:00:00]} Qxd4 {[%emt 0:00:11] And now ...Rxa1 would win.} 28. Nxf8 {[%emt 0:00:00]} Rxf8 {[%emt 0:00:04]} 29. Bc1 {[%emt 0:00:00]} Bf6 {[%emt 0:05:35]} 30. Rb1 {[%emt 0:00:00]} Qe4 {[%emt 0:00:00]} 31. Bg5 {[%emt 0:00:00]} Be5 {[%emt 0:00:00]} 32. Qb3 {[%emt 0:00:00]} Qf5 {[%emt 0:00:00]} 33. Be3 {[%emt 0:00:00]} g5 {[%emt 0:00:00]} 34. Rbd1 {[%emt 0:00:00]} Bd6 {[%emt 0:00:00]} (34... Nxe3 $11 35. fxe3 Qe4) 35. Rfe1 $16 {[%emt 0:00:00]} Qe5 {[%emt 0:00:00]} 36. g3 {[%emt 0:00:00][%cal Oe3c5] Bc5! is the strong threat.} Qf5 {[%emt 0:00:00]} 37. Bc1 {[%emt 0:00:00]} (37. Kg2 $16) 37... Bc5 $36 {[%emt 0:00:00][%mdl 2048] Black fights for an advantage.} 38. Rf1 {[%emt 0:00:00]} Qxh3 {[%emt 0:00:00][%cal Od5c3] aiming for ...Nc3!} 39. Bxg5 $2 {[%emt 0:00:00][%mdl 8192] [#] This move loses the game for White.} (39. Qf3 $15) 39... Nc3 $1 $19 {[%emt 0:00:00][%mdl 512]} 40. bxc3 {[%emt 0:00:00]} Qxg3+ $1 {[%emt 0:00:00]} 41. Kh1 {[%emt 0:24:35]} Qh3+ {[%emt 0:21:29]} (41... Qxg5 42. cxb4 Qh4+ 43. Kg2 $11) 42. Kg1 {[%emt 0:00:09][%cal Og5e3]} Qg4+ {[%emt 0:00:04]} ({Not} 42... bxc3 43. Qb7 $16) 43. Kh1 {[%emt 0:00:51][%cal Oc3b4]} Qh5+ {[%emt 0:00:05]} ({Worse is} 43... Qxg5 44. cxb4 Qh4+ 45. Kg2 $11) 44. Kg2 {[%emt 0:00:13] Hoping for Bf4.} Qxg5+ {[%emt 0:00:05]} 45. Kf3 {[%emt 0:01:53]} Qf6+ {[%emt 0:00:08]} 46. Ke2 $2 {[%emt 0:01:08]} (46. Kg2 bxc3 47. Rd3 Qg6+ 48. Rg3 Qe4+ 49. Rf3) 46... Qe5+ {[%emt 0:02:09]} 47. Kd3 {[%emt 0:01:22]} (47. Kf3 $142 bxc3 48. Qc4) 47... Qf5+ {[%emt 0:02:52]} (47... Rd8+ $142 48. Kc2 Qe4+ 49. Kc1 Ra8) 48. Kc4 {[%emt 0:00:49]} Rc8 {[%emt 0:00:29] Black mates.} 49. Qb1 {[%emt 0:01:45]} Be7+ {[%emt 0:01:08]} 50. Kb3 {[%emt 0:00:10]} Rxc3+ {[%emt 0:01:16]} 51. Kb2 {[%emt 0:00:05]} Qe5 {[%emt 0:00:58]} 52. Rde1 {[%emt 0:00:36]} Re3+ {[%emt 0:00:18]} 53. Kc2 {[%emt 0:00:04]} Qc3+ {[%emt 0:00:12]} 54. Kd1 {[%emt 0:00:10]} Rd3+ {[%emt 0:00:04] Weighted Error Value: White=0.60/Black=0.30} 0-1

[Event "Grandiscacchi GM Festival 2022"]
[Site "Montebelluna"]
[Date "2022.05.18"]
[Round "5.1"]
[White "Pantsulaia, Levan"]
[Black "Kalogridis, Antonios"]
[Result "1-0"]
[ECO "A30"]
[WhiteElo "2587"]
[BlackElo "2306"]
[Annotator "TA"]
[PlyCount "93"]
[EventDate "2022.05.17"]
[EventType "swiss"]
[EventCountry "ITA"]
[SourceTitle "playchess.com"]
[Source "ChessBase"]
[SourceQuality "1"]
[TimeControl "40/3600+30:1800+30"]

{[%evp 14,93,11,18,13,13,13,18,11,10,8,18,14,0,0,0,28,23,24,25,22,23,25,26,33,18,27,25,25,25,24,20,58,34,31,28,42,48,44,57,72,57,77,45,50,48,65,64,76,66,69,56,118,113,103,116,192,191,221,190,250,220,279,261,317,338,332,331,316,297,329,339,292,295,545,463,675,657,612,569,631,573]} 1. Nf3 {[%emt 0:00:05]} Nf6 {[%emt 0:00:04]} 2. g3 {[%emt 0:00:08]} g6 {[%emt 0:00:03]} 3. b3 {[%emt 0:00:07]} Bg7 {[%emt 0:00:04]} 4. Bb2 {[%emt 0:00:06]} b6 {[%emt 0:00:02]} 5. d4 {[%emt 0:01:11]} Bb7 {[%emt 0:00:17]} 6. c4 {[%emt 0:00:07]} O-O {[%emt 0:00:11]} 7. Bg2 {[%emt 0:00:12]} c5 {[%emt 0:00:04]} 8. O-O {[%emt 0:03:03]} d5 {[%emt 0:00:03] A30: Symmetrical English: Double Fianchetto and Hedgehog.} 9. dxc5 {[%emt 0:03:14]} dxc4 {[%emt 0:00:05]} 10. Qxd8 {[%emt 0:05:50]} Rxd8 {[%emt 0:00:08] The position is equal.} 11. cxb6 {[%emt 0:00:06]} axb6 {[%emt 0:00:05]} 12. bxc4 {[%emt 0:00:04]} Na6 {[%emt 0:00:16]} 13. Nbd2 {[%emt 0:12:38] [#]} Ne4 $146 {[%emt 0:23:03]} ({Predecessor:} 13... Nc5 14. Nb3 Ra4 15. Rfc1 Rda8 16. Nxc5 bxc5 17. a3 Ne8 18. Bxg7 Kxg7 19. Rc3 Nd6 {1-0 (41) Buckels,V (2453)-Chittka,J (2317) Vienna 2019}) 14. Bxg7 {[%emt 0:05:42]} Nxd2 {[%emt 0:00:12]} 15. Nxd2 {[%emt 0:00:06]} Bxg2 {[%emt 0:00:06]} 16. Kxg2 {[%emt 0:00:33]} Kxg7 {[%emt 0:01:31]} 17. Nf3 {[%emt 0:04:29]} Nc5 {[%emt 0:09:51]} 18. Rfb1 {[%emt 0:03:28]} Rd6 {[%emt 0:00:17]} 19. a3 {[%emt 0:00:13]} Rc8 {[%emt 0:04:52]} 20. Rb4 {[%emt 0:03:36]} Na6 {[%emt 0:06:48]} 21. Ra4 {[%emt 0:00:35]} Nc5 {[%emt 0:00:05]} 22. Ra7 {[%emt 0:25:57]} Nd7 {[%emt 0:01:29]} 23. Rc1 {[%emt 0:00:00]} Kf8 {[%emt 0:02:06]} 24. Rc2 {[%emt 0:00:00]} Ke8 {[%emt 0:02:14]} 25. Rd2 {[%emt 0:00:00]} Rxd2 {[%emt 0:00:22]} 26. Nxd2 $14 {[%emt 0:00:00][%mdl 4096] Endgame KRN-KRN} Nc5 {[%emt 0:00:08]} 27. Nf1 {[%emt 0:00:00]} e6 {[%emt 0:02:37]} 28. Ne3 {[%emt 0:00:00]} h5 {[%emt 0:00:15]} 29. Kf1 {[%emt 0:00:00]} Rc6 {[%emt 0:04:52]} 30. Ke1 {[%emt 0:00:00]} Rd6 {[%emt 0:00:00]} 31. f3 {[%emt 0:00:00]} Rd4 {[%emt 0:00:00]} 32. h4 {[%emt 0:00:00]} Rd8 {[%emt 0:00:00] Black is on the road to losing.} (32... Nd7 $14) 33. Nd1 $1 $16 {[%emt 0:00:00]} Rd4 {[%emt 0:00:00]} 34. Nb2 {[%emt 0:00:00]} Nd7 {[%emt 0:00:00] [#]} (34... f5 $16 {keeps fighting.}) 35. Nd3 $1 $18 {[%emt 0:00:00]} Rd6 {[%emt 0:00:00]} (35... Rxc4 $2 {[#]} 36. Rxd7 $1 {[%mdl 512]} Rxh4 37. Rb7 Rh1+ 38. Kf2 $18) 36. Kd2 {[%emt 0:00:00]} f6 {[%emt 0:00:00]} (36... Kd8 {is a better defense.} 37. a4 Rc6) 37. Kc3 {[%emt 0:00:00]} Rc6 {[%emt 0:01:57]} 38. Kb4 {[%emt 0:00:00]} Rc8 {[%emt 0:01:07]} 39. a4 {[%emt 0:00:00]} g5 {[%emt 0:03:44]} 40. Kb5 {[%emt 0:00:00]} gxh4 {[%emt 0:01:44]} 41. gxh4 {[%emt 0:21:59]} Kd8 {[%emt 0:30:44]} 42. a5 {[%emt 0:01:22]} bxa5 {[%emt 0:00:48]} 43. c5 {[%emt 0:00:05]} ({Inferior is} 43. Kxa5 Rxc4 44. Kb5 Rxh4 $11) ({Less strong is} 43. Rxa5 Rb8+ 44. Ka4 Rb1 $16) 43... a4 {[%emt 0:00:36]} (43... Rb8+ {might work better.} 44. Kc6 (44. Kxa5 Rb3 $18) 44... Rc8+ 45. Kd6 Nb8 46. Kxe6 Rc6+ 47. Kd5 Ra6) 44. Rxa4 {[%emt 0:01:31] White is clearly winning.} Rb8+ {[%emt 0:00:33]} (44... e5 $142 45. Ra7 Nf8) 45. Kc6 {[%emt 0:00:26]} Ke7 {[%emt 0:00:15]} 46. Ra7 {[%emt 0:00:14]} Rc8+ {[%emt 0:00:08]} 47. Rc7 {[%emt 0:00:08] Weighted Error Value: White=0.06 (flawless) /Black=0.29 (precise)} 1-0